bitfinex/quotes_ETHUSD_20220201
["timestamp","ask_amount","ask_price","bid_price","bid_amount"]
[1643698234904,1.30914074,2733.4,2732.8,1.8574]
[1643698235305,3.3240117,2733.4,2732.8,1.1475]
[1643698235706,1.30914074,2733.4,2732.8,1.1475]
[1643698237170,1.54140306,2733.3,2732.8,1.1475]
[1643698237715,1.54140306,2733.3,2732.8,1.1170808]
[1643698237877,1.54140306,2733.3,2732.6,0.1829]
[1643698238070,1.54140306,2733.3,2732.6,0.29848174]
[1643698238868,1.54140306,2733.3,2732.6,22.60325174]
[1643698239070,1.54140306,2733.3,2732.7,0.06558174]
[1643698239273,1.54140306,2733.3,2732.7,1.06558174]
[1643698239671,1.54140306,2733.3,2732.7,22.45558174]
[1643698239873,1.54140306,2733.3,2732.7,1.0]
[1643698240070,0.3786142,2732.9,2732.6,1.09767]
[1643698240272,0.9148057,2733.4,2732.6,1.09767]
[1643698240515,1.5414325,2733.3,2732.6,0.91477]
[1643698240714,0.1829,2733.2,2732.6,0.91477]
[1643698241114,0.1829,2733.3,2732.6,0.91477]
[1643698241319,1.54142257,2733.2,2732.6,0.91477]
[1643698241515,0.3509985,2733.0,2732.6,0.91477]
[1643698243523,0.3509985,2733.0,2732.5,1.0]
[1643698243733,0.3509985,2733.0,2732.5,1.527]
[1643698245449,0.3509985,2733.0,2732.6,0.91481]
[1643698245651,0.3509985,2733.0,2732.6,22.30481]
[1643698249115,0.3509985,2733.0,2732.7,0.11560629]
[1643698249717,0.1829,2733.4,2732.7,0.11560629]
[1643698249914,0.1829,2733.4,2732.8,0.91476]
[1643698250119,1.54142598,2733.3,2732.7,0.11560629]
[1643698250513,1.54142598,2733.3,2732.5,22.917]
[1643698250715,1.54142598,2733.3,2732.6,0.11560629]
[1643698250915,0.43630558,2733.2,2732.6,22.42037629]
[1643698251115,1.54142598,2733.1,2732.7,0.11560629]
[1643698251314,0.1829,2733.7,2732.8,21.917]
[1643698251516,1.54126766,2733.6,2733.0,21.39]
[1643698251751,1.54126766,2733.5,2733.1,0.11560629]
[1643698251952,1.54126766,2733.4,2733.1,23.94719629]
[1643698252156,0.372836,2733.3,2733.2,3.76560629]
[1643698252356,0.372836,2733.3,2733.2,4.29260629]
[1643698253055,0.372836,2733.3,2733.2,25.68260629]
[1643698253655,0.94583265,2733.8,2733.2,4.29260629]
[1643698253856,1.5412283,2733.7,2733.2,4.177]
[1643698254055,1.5412283,2733.7,2733.2,25.567]
[1643698254256,1.5412283,2733.7,2733.3,0.11560629]
[1643698254657,1.5412283,2733.7,2733.2,4.177]
[1643698254860,0.37951375,2733.3,2733.2,4.177]
[1643698255716,0.1829,2734.0,2733.2,4.177]
[1643698255914,1.54120673,2733.9,2733.2,4.177]
[1643698256714,0.36860217,2733.4,2733.2,4.177]
[1643698256913,0.36860217,2733.4,2733.2,4.3599]
[1643698257519,0.36860217,2733.4,2733.2,4.47550629]
[1643698257715,0.1829,2734.0,2733.2,4.47550629]
[1643698257915,1.54119772,2733.9,2733.2,4.29260629]
[1643698258717,0.37293981,2733.4,2733.2,4.29260629]
[1643698259150,0.37293981,2733.4,2733.2,4.177]
[1643698259354,0.76403237,2733.8,2733.2,4.177]
[1643698259558,1.54119857,2733.7,2733.2,4.177]
[1643698259760,1.54119857,2733.7,2733.2,4.29260629]
[1643698260963,1.54119857,2733.6,2733.2,0.64260629]
[1643698261163,1.54119857,2733.5,2733.2,0.527]
[1643698261366,1.1633,2734.2,2733.3,0.1829]
[1643698261367,0.67902437,2734.2,2733.3,0.1829]
[1643698261566,1.54105674,2734.1,2733.6,0.91444]
[1643698261866,1.54105674,2734.0,2733.7,0.7097]
[1643698262089,0.86172437,2734.5,2733.7,0.82530629]
[1643698262090,1.54105674,2733.9,2733.7,0.82530629]
[1643698262265,1.54105674,2733.8,2733.7,1.82530629]
[1643698262467,1.54105674,2734.0,2733.7,1.82530629]
[1643698263111,1.54105674,2734.0,2733.8,0.91439]
[1643698263314,1.54105674,2734.0,2733.9,0.527]
[1643698263715,1.54004246,2734.0,2733.9,0.527]
[1643698264515,1.54004246,2734.0,2733.5,1.94438629]
[1643698264813,1.54004246,2734.0,2733.6,0.52567876]
[1643698269460,1.54004246,2734.0,2733.4,1.1827]
[1643698270721,1.54004246,2734.0,2733.4,1.0]
[1643698270926,0.43222385,2733.5,2733.4,1.0]
[1643698271327,0.43222385,2733.5,2733.3,1.7099]
[1643698271721,0.91462,2734.1,2733.3,1.82550629]
[1643698271922,0.91462,2734.1,2733.3,1.7099]
[1643698272521,0.91462,2734.1,2733.3,1.82550629]
[1643698272723,0.91462,2734.1,2733.3,2.12550629]
[1643698272923,0.40002799,2733.5,2733.3,2.12550629]
[1643698273327,0.40002799,2733.5,2733.3,2.0099]
[1643698273728,0.40002799,2733.5,2733.3,1.7099]
[1643698274761,0.40002799,2733.5,2733.3,2.0099]
[1643698275963,0.91462,2734.1,2733.3,23.51550629]
[1643698276163,0.9145434,2734.2,2733.4,22.42012629]
[1643698276565,0.9145434,2734.2,2733.5,0.11560629]
[1643698277066,0.44963295,2734.1,2733.4,2.03012629]
[1643698277265,0.39021089,2733.5,2733.4,2.03012629]
[1643698277904,0.9145434,2734.2,2733.4,2.03012629]
[1643698278508,0.9145434,2734.2,2733.4,23.42012629]
[1643698278711,0.9145434,2734.2,2733.5,0.11560629]
[1643698279109,0.41060752,2733.9,2733.5,0.11560629]
[1643698279509,0.41060752,2733.9,2733.4,23.30452]
[1643698279710,0.41060752,2733.9,2733.5,0.11560629]
[1643698280013,2.25824,2734.3,2733.5,0.11560629]
[1643698280217,1.09724,2734.3,2733.5,0.11560629]
[1643698280414,0.1827,2734.3,2733.6,22.30445]
[1643698281214,0.37294038,2734.1,2733.6,22.30445]
[1643698281416,0.37294038,2734.1,2733.7,0.11557912]
[1643698283661,1.09715,2734.5,2733.7,0.11557912]
[1643698283864,1.54102351,2734.4,2733.8,22.30439]
[1643698284265,1.54102351,2734.3,2733.8,22.30439]
[1643698284466,1.54102351,2734.2,2733.8,22.30439]
[1643698284665,1.54102351,2734.1,2733.8,22.30439]
[1643698284870,1.54102351,2734.0,2733.8,22.30439]
[1643698287309,1.54102351,2734.0,2733.8,0.91439]
[1643698287512,1.54102351,2734.0,2733.8,22.30439]
[1643698288716,1.54102351,2734.0,2733.9,1.0]
[1643698288917,1.53990361,2734.0,2733.9,1.0]
[1643698289755,1.53990361,2734.0,2733.8,1.21439]
[1643698290297,1.53990361,2734.0,2733.7,0.1827]
[1643698290652,1.53990361,2734.0,2733.7,21.5727]
[1643698290854,1.53990361,2734.0,2733.8,22.69]
[1643698291254,1.53990361,2734.0,2733.8,1.3]
[1643698291455,1.53990361,2734.0,2733.8,0.3]
[1643698291662,1.53990361,2734.0,2733.7,0.1827]
[1643698292061,1.09714,2734.5,2733.7,0.1827]
[1643698292265,0.9144906,2734.4,2733.7,0.1827]
[1643698292465,0.91456,2734.2,2733.4,1.82881]
[1643698293309,0.4065812,2734.1,2733.4,1.82881]
[1643698293507,0.5892812,2734.1,2733.4,1.82881]
[1643698293711,0.36682183,2733.5,2733.4,1.82881]
[1643698293909,0.36682183,2733.5,2733.3,1.1931]
[1643698294110,0.36682183,2733.5,2733.3,0.91455]
[1643698294313,0.36682183,2733.5,2733.0,5.1673]
[1643698294525,0.36682183,2733.5,2733.0,4.9844]
[1643698295709,0.36682183,2733.5,2733.1,1.0]
[1643698299968,0.36682183,2733.5,2733.0,1.4668]
[1643698302117,0.36682183,2733.5,2733.0,2.38146]
[1643698302310,0.36682183,2733.5,2733.0,3.49703582]
[1643698302510,0.36682183,2733.5,2733.0,3.38146]
[1643698302711,0.36682183,2733.5,2733.0,3.08146]
[1643698303114,0.36682183,2733.5,2733.0,2.08146]
[1643698304168,0.36682183,2733.5,2733.0,1.1668]
[1643698304359,0.36682183,2733.5,2733.0,1.6938]
[1643698304559,0.66682183,2733.5,2733.0,1.6938]
[1643698305864,0.66682183,2733.5,2733.0,1.69245791]
[1643698308909,1.54126253,2733.4,2733.0,1.69245791]
[1643698309109,1.54126253,2733.4,2733.0,0.527]
[1643698309710,1.54126253,2733.4,2733.0,1.44166]
[1643698309915,0.1829,2733.9,2733.1,3.83001392]
[1643698310114,1.54110691,2733.8,2733.2,0.527]
[1643698310330,1.54110691,2733.7,2733.3,2.12894812]
[1643698310517,0.1829,2734.1,2733.5,21.39]
[1643698310518,1.54110691,2733.6,2733.5,21.39]
[1643698310818,0.1829,2734.1,2733.6,0.91446]
[1643698311012,1.95418913,2734.0,2733.7,0.527]
[1643698311213,1.54103161,2733.9,2733.7,0.527]
[1643698311414,0.1829,2734.1,2733.7,0.477]
[1643698311415,1.54103161,2733.8,2733.7,0.477]
[1643698311661,1.54103161,2734.0,2733.7,0.477]
[1643698311865,1.54103161,2733.9,2733.7,0.477]
[1643698312066,1.54103161,2733.8,2733.7,0.477]
[1643698312262,0.1829,2734.1,2733.7,0.477]
[1643698312263,1.54103161,2734.0,2733.7,0.477]
[1643698312569,1.54103161,2734.0,2733.6,0.91446]
[1643698312764,1.54103161,2733.9,2733.6,22.60446]
[1643698312964,0.1827,2734.5,2733.7,0.82527582]
[1643698313165,1.54098981,2734.4,2733.7,1.82527582]
[1643698313764,0.34388502,2734.2,2733.7,1.82527582]
[1643698313967,1.54098981,2734.1,2733.7,1.7097]
[1643698314164,1.54098981,2734.1,2733.7,0.7097]
[1643698314369,1.54098981,2734.1,2733.7,1.82527582]
[1643698314765,1.54098981,2734.1,2733.7,1.7097]
[1643698315264,1.54098981,2734.1,2733.7,0.7097]
[1643698316723,1.54098981,2734.1,2733.7,0.527]
[1643698319965,0.34768477,2734.0,2733.7,0.527]
[1643698320169,1.54098981,2733.9,2733.7,0.527]
[1643698320567,1.54098981,2733.9,2733.4,3.35707]
[1643698321168,1.54098981,2733.9,2733.4,3.05707]
[1643698325414,1.54098981,2733.9,2733.4,1.2282]
[1643698325622,0.1829,2733.8,2733.0,1.30177582]
[1643698325815,1.54098981,2733.7,2733.0,1.1862]
[1643698326015,0.1829,2733.6,2733.0,1.1862]
[1643698326215,1.54098981,2733.5,2733.0,1.1862]
[1643698326420,0.33270805,2733.2,2733.0,1.1862]
[1643698326656,0.1829,2733.8,2733.0,1.1862]
[1643698326956,0.78743683,2733.4,2733.0,1.1862]
[1643698327159,0.78743683,2733.4,2732.8,26.507868]
[1643698327363,1.54126986,2733.3,2732.9,0.11557582]
[1643698328662,0.4210266,2733.0,2732.9,0.41557582]
[1643698328860,0.4210266,2733.0,2732.9,0.11557582]
[1643698329263,0.4210266,2733.0,2732.8,1.975768]
[1643698329264,0.4210266,2733.0,2732.8,0.146548]
[1643698330727,0.69101601,2733.9,2732.9,6.6]
[1643698330930,1.54132326,2733.8,2733.4,0.01293402]
[1643698331132,1.54132326,2733.7,2733.5,0.7097]
[1643698331330,0.87667803,2734.5,2733.6,2.03952298]
[1643698331529,1.54103084,2734.4,2733.7,0.7097]
[1643698331828,0.35253113,2733.8,2733.7,0.7097]
[1643698332027,0.71928377,2734.2,2733.7,0.7097]
[1643698332229,1.5409786,2734.1,2733.7,0.7097]
[1643698332628,1.5409786,2734.1,2733.7,1.62407]
[1643698332927,1.4909786,2734.1,2733.7,1.62407]
[1643698333128,0.3954328,2733.9,2733.7,3.45264]
[1643698333330,0.3954328,2733.9,2733.8,1.0]
[1643698333530,0.71928377,2734.2,2733.8,1.527]
[1643698333729,0.71928377,2734.2,2733.8,0.527]
[1643698333940,0.1827,2734.5,2733.8,0.527]
[1643698334175,0.1827,2734.5,2733.8,1.827]
[1643698334375,0.1827,2734.5,2733.8,1.527]
[1643698334574,0.1827,2734.5,2733.8,1.827]
[1643698334773,0.1827,2734.5,2733.8,1.527]
[1643698334774,0.32312673,2734.1,2733.8,1.527]
[1643698334978,0.1827,2734.5,2733.8,1.827]
[1643698335178,0.85418451,2734.5,2733.9,0.91438]
[1643698335576,0.85418451,2734.5,2733.8,0.527]
[1643698335775,0.85418451,2734.5,2733.8,1.527]
[1643698336581,0.33838295,2733.9,2733.8,1.527]
[1643698337381,0.33838295,2733.9,2733.8,0.527]
[1643698337778,0.33838295,2733.9,2733.8,1.527]
[1643698338012,0.85418451,2734.5,2733.9,0.91436]
[1643698339014,0.39778814,2734.4,2733.9,0.91436]
[1643698340818,0.39778814,2734.4,2733.7,3.05787]
[1643698341017,0.1827,2734.3,2733.7,3.05787]
[1643698341416,0.1827,2734.3,2733.8,0.3]
[1643698341665,0.39778814,2734.4,2733.8,1.3]
[1643698342864,0.39778814,2734.4,2733.9,0.91437]
[1643698349761,0.39778814,2734.4,2733.9,1.21437]
[1643698350762,0.39778814,2734.4,2733.9,0.91437]
[1643698350964,0.1827,2734.3,2733.9,1.21437]
[1643698351163,0.39778814,2734.4,2733.9,1.21437]
[1643698352911,1.54085832,2734.3,2733.9,1.21437]
[1643698354117,1.54085832,2734.3,2733.9,0.91437]
[1643698354520,1.54085832,2734.3,2733.9,1.21437]
[1643698354720,1.54085832,2734.3,2734.0,1.8286]
[1643698354951,0.13819997,2734.7,2734.0,2.74289]
[1643698355121,1.54080298,2734.6,2734.0,5.01386582]
[1643698355518,1.54080298,2734.6,2734.1,22.30429]
[1643698355722,1.5393958,2734.6,2734.2,1.0]
[1643698355918,2.44078407,2734.6,2734.2,1.0]
[1643698356118,0.42993611,2734.5,2734.2,1.0]
[1643698356320,0.42993611,2734.5,2734.1,2.21428]
[1643698357159,0.42993611,2734.5,2734.3,0.9143]
[1643698357761,0.42993611,2734.5,2734.3,1.2143]
[1643698359762,0.42993611,2734.5,2734.3,0.9143]
[1643698363421,0.1827,2735.0,2734.3,22.3043]
[1643698363633,0.1827,2735.2,2734.5,0.91418]
[1643698363823,0.1827,2735.3,2734.5,0.3]
[1643698364023,0.1827,2735.3,2734.4,22.917]
[1643698364024,0.1827,2735.3,2734.4,24.0692]
[1643698364466,0.78853905,2735.2,2734.4,24.98338]
[1643698364767,0.1827,2735.3,2734.8,21.39]
[1643698364970,7.44,2735.4,2734.9,2.57857823]
[1643698365168,7.44,2735.4,2734.9,1.527]
[1643698365566,7.44,2735.4,2735.0,21.39]
[1643698365765,0.42958946,2735.4,2735.1,1.527]
[1643698365964,0.42958946,2735.4,2735.1,0.527]
[1643698366771,1.08178106,2735.7,2735.2,0.91399]
[1643698366973,0.89908106,2735.7,2735.2,0.91399]
[1643698367269,0.89908106,2735.7,2735.2,1.21399]
[1643698367474,0.89908106,2735.7,2735.2,0.91399]
[1643698367673,0.69101601,2735.9,2735.2,0.91399]
[1643698367674,0.69101601,2735.9,2735.2,1.21399]
[1643698367906,0.43420827,2735.8,2735.4,0.91391]
[1643698368111,0.43420827,2735.8,2735.2,0.3]
[1643698368112,0.43420827,2735.8,2735.1,23.4094]
[1643698368314,0.43420827,2735.8,2735.2,1.0]
[1643698368513,0.43420827,2735.8,2735.2,1.1827]
[1643698368716,1.26184574,2735.8,2735.2,1.1827]
[1643698368911,1.26184574,2735.8,2735.2,2.0966]
[1643698369112,1.26184574,2735.8,2735.2,3.9244]
[1643698370714,1.26184574,2735.8,2735.2,4.2244]
[1643698370915,1.26184574,2735.8,2735.2,3.0417]
[1643698371115,1.26184574,2735.8,2735.3,1.0]
[1643698372169,1.26184574,2735.8,2735.4,0.91391]
[1643698372365,1.26184574,2735.8,2735.4,1.21391]
[1643698372763,1.26184574,2735.8,2735.4,0.91391]
[1643698373767,0.43420827,2735.8,2735.4,0.91391]
[1643698374004,0.43420827,2735.8,2735.4,2.8514115]
[1643698374168,0.43420827,2735.8,2735.4,0.91391]
[1643698375624,0.43420827,2735.8,2735.5,1.91736477]
[1643698375827,1.54021868,2735.7,2735.4,0.91391]
[1643698376026,1.54021868,2735.6,2735.4,0.91391]
[1643698376223,1.54021868,2735.9,2735.4,0.91391]
[1643698376427,1.54021868,2735.9,2735.4,1.39661]
[1643698376631,1.54021868,2735.8,2735.4,1.21391]
[1643698376828,1.54021868,2735.7,2735.4,1.21391]
[1643698377028,1.54021868,2735.6,2735.4,1.21391]
[1643698377229,1.54021868,2735.6,2735.4,0.91391]
[1643698377432,1.54021868,2735.6,2735.3,1.827]
[1643698379365,1.54021868,2735.5,2735.4,1.94080655]
[1643698379563,0.85915887,2736.1,2735.4,1.95264872]
[1643698379761,1.54024063,2736.0,2735.3,2.74085]
[1643698380265,1.97761673,2736.0,2735.3,4.67910458]
[1643698380465,1.54024063,2735.9,2735.3,4.67910458]
[1643698380661,1.54024063,2735.9,2735.5,0.9138]
[1643698381668,1.54024063,2735.9,2735.5,22.3038]
[1643698381964,1.54024063,2735.8,2735.5,22.3038]
[1643698382162,1.54024063,2735.7,2735.5,22.3038]
[1643698382363,0.96441706,2736.2,2735.5,22.3038]
[1643698382663,1.54015504,2736.1,2735.5,22.3038]
[1643698383117,0.35029141,2735.9,2735.5,22.3038]
[1643698383317,1.54015504,2735.8,2735.5,22.3038]
[1643698388371,1.54015504,2735.8,2735.5,0.9138]
[1643698389973,1.54015504,2735.8,2735.3,0.527]
[1643698390174,0.19496692,2735.7,2734.7,3.251]
[1643698390420,1.54015504,2735.6,2734.7,4.4985]
[1643698390621,0.1827,2735.5,2734.7,4.3158]
[1643698390822,1.53876847,2735.4,2734.7,4.3158]
[1643698391024,0.1827,2735.3,2734.7,4.3158]
[1643698391622,0.82386617,2735.0,2734.7,4.3158]
[1643698391822,0.36365681,2734.9,2734.7,4.3158]
[1643698392041,0.36365681,2734.9,2734.7,3.0683]
[1643698392422,0.36365681,2734.9,2734.5,1.9436234]
[1643698392622,0.36365681,2734.9,2734.5,1.8281]
[1643698392824,0.36365681,2734.9,2734.5,2.8281]
[1643698393228,0.36365681,2734.9,2734.6,1.0]
[1643698393625,0.36365681,2734.9,2734.5,1.8281]
[1643698394027,0.36365681,2734.9,2734.5,23.5181]
[1643698394269,0.36365681,2734.9,2734.6,22.5055234]
[1643698394474,0.36365681,2734.9,2734.6,22.39]
[1643698394675,0.36365681,2734.9,2734.6,1.0]
[1643698394874,0.36365681,2734.9,2734.6,22.50552608]
[1643698395071,0.36365681,2734.9,2734.6,22.39]
[1643698395276,0.36365681,2734.9,2734.6,23.30403]
[1643698395480,0.36365681,2734.9,2734.6,24.21806]
[1643698396275,0.83314877,2735.2,2734.6,24.21806]
[1643698396475,0.83314877,2735.2,2734.8,0.91404]
[1643698397477,0.43119261,2734.9,2734.8,0.91404]
[1643698397778,0.1827,2735.5,2734.8,1.21404]
[1643698398031,0.1827,2735.8,2735.1,0.91395]
[1643698398230,3.19897277,2736.0,2735.1,0.91395]
[1643698399032,0.39757105,2735.2,2735.1,0.91395]
[1643698400133,0.6913254,2735.4,2735.1,0.91395]
[1643698400536,0.6913254,2735.4,2734.9,1.914]
[1643698401235,0.38166732,2735.2,2734.9,1.914]
[1643698402067,0.38166732,2735.2,2734.8,3.3463]
[1643698402268,0.38166732,2735.2,2734.7,3.30973223]
[1643698402474,0.38166732,2735.2,2734.7,3.01151]
[1643698403972,0.38166732,2735.2,2734.8,22.8727]
[1643698404171,0.38166732,2735.2,2734.9,0.91402]
[1643698404572,0.38166732,2735.2,2734.9,1.02954042]
[1643698404773,0.38166732,2735.2,2734.9,0.91402]
[1643698405174,0.38166732,2735.2,2734.8,0.29822042]
[1643698405434,0.38166732,2735.2,2734.8,0.11552042]
[1643698405627,0.38166732,2735.2,2734.7,3.01151]
[1643698408233,0.38166732,2735.2,2734.7,24.40151]
[1643698408431,0.38166732,2735.2,2734.8,2.0973584]
[1643698408828,0.38166732,2735.2,2734.8,0.11552597]
[1643698409160,0.38166732,2735.2,2734.7,3.01151]
[1643698410566,0.38166732,2735.2,2734.7,1.1836]
[1643698410766,1.54036241,2735.1,2734.7,1.1836]
[1643698411568,1.54036241,2735.1,2734.6,1.1827]
[1643698411971,1.54036241,2735.1,2734.5,0.4827]
[1643698412201,1.54036241,2735.1,2734.5,0.1827]
[1643698412473,2.61304574,2735.2,2734.5,1.1827]
[1643698412672,2.61304574,2735.2,2734.5,0.1827]
[1643698412673,1.54036241,2735.0,2734.5,0.1827]
[1643698412911,1.54036241,2734.9,2734.5,0.1827]
[1643698413122,0.38166732,2735.2,2734.5,0.1827]
[1643698413123,1.54036241,2734.8,2734.5,0.1827]
[1643698413419,0.38166732,2735.2,2734.5,21.68822597]
[1643698413621,1.54034968,2735.1,2734.6,2.13102565]
[1643698413818,1.54034968,2735.1,2734.6,2.31549968]
[1643698414018,1.53935046,2735.1,2734.6,2.31549968]
[1643698414220,1.53935046,2735.1,2734.6,2.43102565]
[1643698414617,1.53935046,2735.1,2734.6,3.43102565]
[1643698414817,1.53935046,2735.1,2734.6,3.13102565]
[1643698415220,1.53935046,2735.1,2734.7,0.91409]
[1643698415617,1.53935046,2735.1,2734.7,1.91409]
[1643698415818,1.53935046,2735.1,2734.7,0.91409]
[1643698416318,1.53935046,2735.1,2734.7,1.91409]
[1643698421818,1.53935046,2735.1,2734.8,1.95187274]
[1643698422019,1.53935046,2735.1,2734.7,0.91409]
[1643698422517,1.53935046,2735.1,2734.7,1.91409]
[1643698422718,1.53935046,2735.1,2734.7,2.02961597]
[1643698422921,1.53935046,2735.1,2734.7,1.91409]
[1643698423119,1.53935046,2735.1,2734.7,23.30409]
[1643698423321,1.53935046,2735.1,2734.8,0.11552597]
[1643698423521,1.53935046,2735.1,2734.9,0.1827]
[1643698423724,1.53935046,2735.1,2735.0,0.91398]
[1643698423923,1.53935046,2735.1,2735.0,1.02950597]
[1643698424168,1.53935046,2735.1,2735.0,2.95337476]
[1643698424571,1.53935046,2735.1,2735.0,3.84709551]
[1643698424773,1.53935046,2735.1,2735.0,1.91398]
[1643698425284,1.53935046,2735.1,2735.0,0.91398]
[1643698426675,1.53935046,2735.1,2734.9,0.1827]
[1643698426878,1.53935046,2735.1,2734.8,2.44098]
[1643698427077,1.53935046,2735.1,2734.8,1.44098]
[1643698427378,1.53935046,2735.1,2734.9,0.91402]
[1643698427919,1.53935046,2735.1,2734.9,1.91402]
[1643698428323,1.53935046,2735.1,2734.9,0.91402]
[1643698428725,1.53935046,2735.1,2735.0,1.97552825]
[1643698428927,0.6913254,2735.4,2735.1,0.91393]
[1643698429928,0.38005983,2735.3,2735.1,0.91393]
[1643698431789,0.38005983,2735.3,2735.1,1.91393]
[1643698432391,0.38005983,2735.3,2735.1,23.60393]
[1643698432595,0.89763348,2735.5,2735.1,23.60393]
[1643698432791,0.89763348,2735.5,2735.2,0.11552597]
[1643698433191,1.85871601,2735.8,2735.3,0.91386]
[1643698433396,0.1827,2735.7,2735.3,0.91386]
[1643698433632,0.36797591,2735.5,2735.3,0.91386]
[1643698433794,0.1827,2735.7,2735.3,22.30386]
[1643698433993,0.69101601,2735.9,2735.3,22.30386]
[1643698434192,0.91637677,2735.7,2735.3,22.30386]
[1643698434395,1.54012209,2735.6,2735.3,22.30386]
[1643698436019,1.94601876,2735.6,2735.3,22.30386]
[1643698436315,1.54012209,2735.5,2735.3,22.30386]
[1643698436514,1.54012209,2735.5,2735.3,0.91386]
[1643698436716,1.54012209,2735.5,2735.3,22.30386]
[1643698437316,1.54012209,2735.5,2735.3,0.91386]
[1643698437518,1.52812209,2735.5,2735.3,0.91386]
[1643698438825,1.52812209,2735.5,2735.3,22.30386]
[1643698439019,1.52812209,2735.5,2735.3,0.91386]
[1643698446666,1.52812209,2735.5,2735.4,1.95107452]
[1643698447073,0.1827,2736.0,2735.4,1.95107452]
[1643698447274,0.1827,2736.0,2735.5,0.9138]
[1643698447677,0.1827,2736.1,2735.6,1.93318918]
[1643698448076,0.44894088,2735.7,2735.6,1.93318918]
[1643698448474,0.44894088,2735.7,2735.6,2.84690918]
[1643698449698,0.1827,2736.0,2735.6,2.84690918]
[1643698449879,0.0121566,2736.4,2735.6,2.84690918]
[1643698449880,0.1827,2736.2,2735.6,2.84690918]
[1643698450080,0.1827,2736.3,2735.6,2.84690918]
[1643698450920,0.40060974,2736.2,2735.6,2.84690918]
[1643698451120,0.1827,2736.1,2735.6,2.84690918]
[1643698451325,0.1827,2736.1,2735.6,0.91372]
[1643698451728,0.90590284,2735.9,2735.6,0.91372]
[1643698452327,0.1827,2736.1,2735.6,0.91372]
[1643698452730,0.1827,2736.1,2735.6,2.90623333]
[1643698453128,0.1827,2736.1,2735.6,24.29623333]
[1643698453336,0.1827,2736.1,2735.6,2.90623333]
[1643698453527,0.1827,2736.1,2735.6,0.91372]
[1643698453927,0.1827,2736.1,2735.7,1.93329995]
[1643698454164,1.33823382,2736.2,2735.7,1.93329995]
[1643698454967,1.33823382,2736.2,2735.6,0.91372]
[1643698455570,0.69101601,2736.5,2735.7,1.97781531]
[1643698455775,2.64697829,2736.6,2735.7,1.97781531]
[1643698455776,0.68985384,2736.6,2735.8,0.827]
[1643698456120,0.9136752,2737.1,2735.8,0.827]
[1643698456121,0.68985384,2737.2,2736.2,21.40243519]
[1643698456275,0.68985384,2737.3,2736.4,21.39]
[1643698456475,0.1827,2737.4,2736.5,0.527]
[1643698456476,0.87255384,2737.4,2736.5,0.527]
[1643698456673,0.39768885,2737.1,2736.6,22.12069548]
[1643698456877,0.39768885,2737.1,2736.7,1.527]
[1643698457084,1.6395472,2737.5,2736.7,1.527]
[1643698457271,1.6395472,2737.5,2736.7,0.527]
[1643698457474,0.94969336,2737.5,2736.8,0.91336]
[1643698457674,1.53942371,2737.4,2736.9,0.527]
[1643698457914,0.34324879,2737.2,2736.9,0.527]
[1643698458120,1.53942371,2737.1,2736.9,0.527]
[1643698459122,0.1826,2737.7,2736.9,0.527]
[1643698459327,1.5393564,2737.6,2737.0,0.91336]
[1643698459529,0.1826,2737.5,2737.1,2.05599943]
[1643698459722,1.5393564,2737.4,2737.1,2.05599943]
[1643698459922,1.5393564,2737.4,2737.0,0.91336]
[1643698460126,1.5393564,2737.3,2737.1,2.04681058]
[1643698460330,0.1826,2737.7,2737.2,0.527]
[1643698460526,1.53925383,2737.6,2737.2,0.527]
[1643698460722,0.1826,2737.5,2737.2,1.44025]
[1643698460923,1.53925383,2737.4,2737.2,1.44025]
[1643698461323,0.39512154,2737.3,2737.2,1.44025]
[1643698461525,0.39512154,2737.3,2736.9,2.35353]
[1643698461776,1.53931644,2737.2,2736.6,3.8336]
[1643698461973,1.72191644,2737.2,2736.4,2.10322994]
[1643698462177,1.53931644,2737.1,2736.4,2.10322994]
[1643698462572,0.36278529,2736.6,2736.4,2.10322994]
[1643698463074,0.36278529,2736.6,2736.4,0.27639994]
[1643698463278,0.1826,2737.2,2736.4,0.27639994]
[1643698463504,2.10645,2737.7,2736.4,0.27639994]
[1643698463505,1.5394868,2737.1,2736.5,0.1826]
[1643698463681,1.53947999,2737.0,2736.5,0.1826]
[1643698463878,1.53947999,2736.9,2736.4,0.27639994]
[1643698464081,1.53956928,2736.8,2736.4,0.27639994]
[1643698464278,0.1827,2737.3,2736.4,0.27639994]
[1643698464279,0.41033045,2736.5,2736.4,0.27639994]
[1643698466820,0.41033045,2736.5,2736.3,0.1826]
[1643698467023,0.41033045,2736.5,2735.8,2.00992]
[1643698467232,0.41033045,2736.5,2735.8,0.1827]
[1643698467622,0.42613978,2735.9,2735.8,0.1827]
[1643698467820,0.1827,2736.8,2735.8,0.1827]
[1643698468021,1.53978045,2736.7,2735.8,0.1827]
[1643698468220,0.1827,2736.6,2735.8,0.1827]
[1643698468421,1.53978045,2736.5,2735.8,0.1827]
[1643698468822,0.1827,2736.7,2735.8,0.1827]
[1643698469022,1.53972205,2736.6,2735.8,0.1827]
[1643698469277,1.53972205,2736.5,2735.8,0.1827]
[1643698469480,0.4827,2736.8,2735.8,0.1827]
[1643698469680,0.43124056,2735.9,2735.8,0.1827]
[1643698471884,1.97128134,2735.9,2735.8,0.1827]
[1643698472208,2.7539604,2735.9,2735.8,0.1827]
[1643698472394,1.21391962,2735.9,2735.8,0.1827]
[1643698473420,1.21391962,2735.9,2735.1,0.1827]
[1643698473619,0.78267906,2735.9,2735.1,0.1827]
[1643698475222,0.40641518,2735.4,2735.1,0.1827]
[1643698476222,0.78267906,2735.9,2735.1,0.1827]
[1643698476420,0.78267906,2735.9,2735.3,0.91393]
[1643698477302,0.36516492,2735.5,2735.3,0.91393]
[1643698478971,0.1827,2736.2,2735.4,2.06659022]
[1643698479170,0.1827,2736.2,2735.1,21.5727]
[1643698479171,1.53992851,2736.1,2735.5,0.91386]
[1643698479403,0.1827,2736.0,2735.5,0.91386]
[1643698479570,0.07438,2736.3,2735.5,0.91386]
[1643698479571,0.1827,2736.2,2735.5,0.91386]
[1643698479772,1.53989685,2736.1,2735.5,0.91386]
[1643698479973,0.35334523,2735.8,2735.5,0.91386]
[1643698481018,0.35334523,2735.8,2735.3,1.3651]
[1643698481417,0.35334523,2735.8,2735.4,0.91387]